[Event "Early-Titled-Tuesday-Blitz-January-30-2024"]
[Site "Chess.com"]
[Date "2024.01.30"]
[Round "9"]
[White "Sanyura"]
[Black "iwanyu"]
[Result "1-0"]
[WhiteElo "2655"]
[BlackElo "2824"]
[TimeControl "180+1"]
[EndTime "9:49:33 PST"]
[Termination "Sanyura won by checkmate"]

1. Nf3 {[%clk 0:01:48.2]} 1... Nf6 {[%clk 0:02:57.5]} 2. g3 {[%clk 0:01:49.1]}
2... c5 {[%clk 0:02:57.2]} 3. Bg2 {[%clk 0:01:46.9]} 3... Nc6 {[%clk 0:02:57.5]}
4. d3 {[%clk 0:01:47.8]} 4... e5 {[%clk 0:02:57.5]} 5. O-O {[%clk 0:01:48.7]}
5... Be7 {[%clk 0:02:56.7]} 6. Nbd2 {[%clk 0:01:49.1]} 6... O-O {[%clk
0:02:56.6]} 7. e4 {[%clk 0:01:50]} 7... d6 {[%clk 0:02:55]} 8. Nh4 {[%clk
0:01:50.6]} 8... Re8 {[%clk 0:02:54]} 9. f4 {[%clk 0:01:49.9]} 9... exf4 {[%clk
0:02:53.9]} 10. gxf4 {[%clk 0:01:50.1]} 10... Nxe4 {[%clk 0:02:51.9]} 11. Nxe4
{[%clk 0:01:49]} 11... Bxh4 {[%clk 0:02:51.7]} 12. f5 {[%clk 0:01:42.9]} 12...
d5 {[%clk 0:02:48.8]} 13. Nxc5 {[%clk 0:01:37.2]} 13... Bf6 {[%clk 0:02:27]} 14.
c3 {[%clk 0:01:35.4]} 14... Nd4 {[%clk 0:02:23.6]} 15. cxd4 {[%clk 0:01:31.2]}
15... Bxd4+ {[%clk 0:02:22.6]} 16. Kh1 {[%clk 0:01:31.6]} 16... Bxc5 {[%clk
0:02:23.3]} 17. f6 {[%clk 0:01:32.2]} 17... g6 {[%clk 0:02:20.8]} 18. d4 {[%clk
0:01:26]} 18... Bf8 {[%clk 0:02:19.2]} 19. Bf4 {[%clk 0:01:24.4]} 19... Qxf6
{[%clk 0:02:13.9]} 20. Be5 {[%clk 0:01:23.1]} 20... Qd8 {[%clk 0:02:10.3]} 21.
Qf3 {[%clk 0:01:21.8]} 21... Be6 {[%clk 0:02:07.5]} 22. Bh3 {[%clk 0:01:22.3]}
22... Qe7 {[%clk 0:01:22.3]} 23. Rae1 {[%clk 0:00:27.3]} 23... Bxh3 {[%clk
0:01:15.8]} 24. Qxh3 {[%clk 0:00:26]} 24... f6 {[%clk 0:01:14.6]} 25. Bxf6
{[%clk 0:00:16.9]} 25... Qxe1 {[%clk 0:01:14.2]} 26. Rxe1 {[%clk 0:00:17.3]}
26... Rxe1+ {[%clk 0:01:14.3]} 27. Kg2 {[%clk 0:00:17.8]} 27... Re2+ {[%clk
0:01:08.2]} 28. Kf3 {[%clk 0:00:16.5]} 28... Rae8 {[%clk 0:01:02.4]} 29. Be5
{[%clk 0:00:16.3]} 29... Rxb2 {[%clk 0:00:57.5]} 30. Qd7 {[%clk 0:00:16.2]}
30... Re7 {[%clk 0:00:57.6]} 31. Qxd5+ {[%clk 0:00:16.1]} 31... Rf7+ {[%clk
0:00:57.7]} 32. Ke3 {[%clk 0:00:07.8]} 32... b5 {[%clk 0:00:52]} 33. Qe6 {[%clk
0:00:07.4]} 33... b4 {[%clk 0:00:46.1]} 34. d5 {[%clk 0:00:07.7]} 34... Rxa2
{[%clk 0:00:44.3]} 35. d6 {[%clk 0:00:08.1]} 35... Ra3+ {[%clk 0:00:36.8]} 36.
Ke4 {[%clk 0:00:08.3]} 36... Ra6 {[%clk 0:00:21.4]} 37. Qc4 {[%clk 0:00:06.9]}
37... Rxd6 {[%clk 0:00:20.5]} 38. Bxd6 {[%clk 0:00:07.3]} 38... Bxd6 {[%clk
0:00:21.4]} 39. Qc8+ {[%clk 0:00:03.1]} 39... Bf8 {[%clk 0:00:21.3]} 40. Kd5
{[%clk 0:00:04]} 40... Rf5+ {[%clk 0:00:20.8]} 41. Ke6 {[%clk 0:00:03.8]} 41...
a5 {[%clk 0:00:21]} 42. Qa8 {[%clk 0:00:03.6]} 42... Kg7 {[%clk 0:00:20.8]} 43.
Qb7+ {[%clk 0:00:04.1]} 43... Kh6 {[%clk 0:00:21.2]} 44. Qe4 {[%clk 0:00:03]}
44... a4 {[%clk 0:00:21.3]} 45. Qh4+ {[%clk 0:00:03.1]} 45... Kg7 {[%clk
0:00:21.7]} 46. Qd4+ {[%clk 0:00:03.7]} 46... Kg8 {[%clk 0:00:22.3]} 47. Qc4
{[%clk 0:00:03.2]} 47... a3 {[%clk 0:00:21.3]} 48. h3 {[%clk 0:00:03.3]} 48...
Rc5 {[%clk 0:00:19.1]} 49. Qf4 {[%clk 0:00:02.7]} 49... Rc6+ {[%clk 0:00:18.3]}
50. Kd7 {[%clk 0:00:03.2]} 50... Rd6+ {[%clk 0:00:18.3]} 51. Ke8 {[%clk
0:00:03.7]} 51... Re6+ {[%clk 0:00:18.8]} 52. Kd7 {[%clk 0:00:04.1]} 52... Re7+
{[%clk 0:00:19.2]} 53. Kd8 {[%clk 0:00:04.2]} 53... Rf7 {[%clk 0:00:19.1]} 54.
Qc4 {[%clk 0:00:04.5]} 54... Kg7 {[%clk 0:00:18.8]} 55. Qd4+ {[%clk 0:00:05]}
55... Rf6 {[%clk 0:00:18.9]} 56. Ke8 {[%clk 0:00:03.7]} 56... a2 {[%clk
0:00:17.2]} 57. Qd7+ {[%clk 0:00:03.4]} 57... Kh6 {[%clk 0:00:17]} 58. Qd4
{[%clk 0:00:04.2]} 58... Bg7 {[%clk 0:00:14.2]} 59. Qh4# {[%clk 0:00:04.3]} 1-0

[Event "Early-Titled-Tuesday-Blitz-January-30-2024"]
[Site "Chess.com"]
[Date "2024.01.30"]
[Round "9"]
[White "tusplingher"]
[Black "jk13"]
[Result "1/2-1/2"]
[WhiteElo "2498"]
[BlackElo "2703"]
[TimeControl "180+1"]
[EndTime "9:49:35 PST"]
[Termination "Game drawn by repetition"]

1. e4 {[%clk 0:03:00.9]} 1... e5 {[%clk 0:02:58.7]} 2. Nf3 {[%clk 0:03:01.1]}
2... Nc6 {[%clk 0:02:59.2]} 3. Bb5 {[%clk 0:03:00.3]} 3... a6 {[%clk 0:02:59.7]}
4. Ba4 {[%clk 0:03:00.4]} 4... Nf6 {[%clk 0:02:58]} 5. d3 {[%clk 0:02:59.7]}
5... b5 {[%clk 0:02:56.6]} 6. Bb3 {[%clk 0:02:59.7]} 6... Bc5 {[%clk 0:02:57.3]}
7. Nc3 {[%clk 0:02:51.2]} 7... O-O {[%clk 0:02:54.7]} 8. Nd5 {[%clk 0:02:47]}
8... h6 {[%clk 0:02:47.4]} 9. Nxf6+ {[%clk 0:02:36.6]} 9... Qxf6 {[%clk
0:02:47.2]} 10. Bd5 {[%clk 0:02:36.2]} 10... Re8 {[%clk 0:02:33.3]} 11. Rg1
{[%clk 0:02:33.2]} 11... Rb8 {[%clk 0:01:58.1]} 12. g4 {[%clk 0:02:30.9]} 12...
Nd4 {[%clk 0:01:58.8]} 13. Nxd4 {[%clk 0:02:23.2]} 13... Bxd4 {[%clk 0:01:59.7]}
14. Qe2 {[%clk 0:02:17.8]} 14... g5 {[%clk 0:01:36.7]} 15. h4 {[%clk 0:02:06.4]}
15... c6 {[%clk 0:01:25.9]} 16. Bb3 {[%clk 0:02:04.1]} 16... d5 {[%clk 0:01:03]}
17. c3 {[%clk 0:01:39.3]} 17... Bb6 {[%clk 0:01:00.4]} 18. Bd2 {[%clk
0:01:38.3]} 18... dxe4 {[%clk 0:00:51.1]} 19. dxe4 {[%clk 0:01:37]} 19... Be6
{[%clk 0:00:45.9]} 20. hxg5 {[%clk 0:01:17.9]} 20... hxg5 {[%clk 0:00:45.5]} 21.
Rh1 {[%clk 0:01:15.9]} 21... Rbd8 {[%clk 0:00:30.4]} 22. f3 {[%clk 0:01:07.4]}
22... Qg6 {[%clk 0:00:25.2]} 23. Rh5 {[%clk 0:01:00.8]} 23... f6 {[%clk
0:00:25.6]} 24. O-O-O {[%clk 0:00:59.6]} 24... Bxb3 {[%clk 0:00:23.2]} 25. axb3
{[%clk 0:00:59.6]} 25... Kg7 {[%clk 0:00:22.9]} 26. Rdh1 {[%clk 0:00:57.3]}
26... Rh8 {[%clk 0:00:23.2]} 27. Rxh8 {[%clk 0:00:38.3]} 27... Rxh8 {[%clk
0:00:24.1]} 28. Rxh8 {[%clk 0:00:38.5]} 28... Kxh8 {[%clk 0:00:24.9]} 29. Qd3
{[%clk 0:00:37.1]} 29... Qe8 {[%clk 0:00:21.3]} 30. Qd6 {[%clk 0:00:35.7]} 30...
Kg7 {[%clk 0:00:20.9]} 31. Kc2 {[%clk 0:00:32.9]} 31... Kf7 {[%clk 0:00:20.9]}
32. c4 {[%clk 0:00:29.1]} 32... Bd8 {[%clk 0:00:17.4]} 33. Bb4 {[%clk
0:00:25.6]} 33... Kg6 {[%clk 0:00:15.7]} 34. Kd3 {[%clk 0:00:22.2]} 34... Bb6
{[%clk 0:00:15]} 35. Kc2 {[%clk 0:00:17.8]} 35... Bd4 {[%clk 0:00:13.7]} 36. Bc3
{[%clk 0:00:15.8]} 36... Be3 {[%clk 0:00:11.2]} 37. Kd3 {[%clk 0:00:14.6]} 37...
Bb6 {[%clk 0:00:10.1]} 38. Bb4 {[%clk 0:00:14.7]} 38... Ba7 {[%clk 0:00:07.5]}
39. Bc5 {[%clk 0:00:13.9]} 39... Bb8 {[%clk 0:00:07.3]} 40. Qf8 {[%clk
0:00:12.9]} 40... Qxf8 {[%clk 0:00:05.2]} 41. Bxf8 {[%clk 0:00:13.3]} 41... Kf7
{[%clk 0:00:06]} 42. Bc5 {[%clk 0:00:12.9]} 42... Ke6 {[%clk 0:00:06.5]} 43. b4
{[%clk 0:00:10.7]} 43... Bc7 {[%clk 0:00:06.8]} 44. b3 {[%clk 0:00:10.5]} 44...
Bd8 {[%clk 0:00:07.1]} 45. Kc2 {[%clk 0:00:09]} 45... Bc7 {[%clk 0:00:07.1]} 46.
Kd3 {[%clk 0:00:09.3]} 46... Bb8 {[%clk 0:00:06.5]} 47. Kc2 {[%clk 0:00:09.6]}
47... Kd7 {[%clk 0:00:06.2]} 48. Kd3 {[%clk 0:00:09.7]} 48... Bc7 {[%clk
0:00:06.7]} 49. Kc2 {[%clk 0:00:10]} 49... Bd8 {[%clk 0:00:07.4]} 50. Kd3 {[%clk
0:00:09.9]} 50... Bc7 {[%clk 0:00:07.3]} 51. Kc2 {[%clk 0:00:10]} 51... a5
{[%clk 0:00:08]} 52. bxa5 {[%clk 0:00:06.9]} 52... Bxa5 {[%clk 0:00:08.9]} 53.
cxb5 {[%clk 0:00:04.8]} 53... cxb5 {[%clk 0:00:09]} 54. b4 {[%clk 0:00:05.3]}
54... Bd8 {[%clk 0:00:08.6]} 55. Kd3 {[%clk 0:00:05.3]} 55... Kc6 {[%clk
0:00:09.2]} 56. Kc2 {[%clk 0:00:05.3]} 56... Kd7 {[%clk 0:00:09.5]} 57. Kd3
{[%clk 0:00:05.7]} 57... Ke6 {[%clk 0:00:09.7]} 58. Kc2 {[%clk 0:00:06]} 58...
Bc7 {[%clk 0:00:10.5]} 59. Kd3 {[%clk 0:00:06.2]} 59... Bd6 {[%clk 0:00:09.8]}
60. Bxd6 {[%clk 0:00:06.3]} 60... Kxd6 {[%clk 0:00:10.7]} 61. Kc2 {[%clk
0:00:06.2]} 61... Kc6 {[%clk 0:00:11.5]} 62. Kd3 {[%clk 0:00:06.5]} 62... Kd6
{[%clk 0:00:12.3]} 63. Kc2 {[%clk 0:00:07]} 63... Kc6 {[%clk 0:00:13.2]} 64. Kd3
{[%clk 0:00:07.4]} 64... Kd6 {[%clk 0:00:14.1]} 1/2-1/2

[Event "Early-Titled-Tuesday-Blitz-January-30-2024"]
[Site "Chess.com"]
[Date "2024.01.30"]
[Round "9"]
[White "Herzog2012"]
[Black "brm72"]
[Result "0-1"]
[WhiteElo "2555"]
[BlackElo "2694"]
[TimeControl "180+1"]
[EndTime "9:49:36 PST"]
[Termination "brm72 won on time"]

1. e4 {[%clk 0:03:00.9]} 1... c6 {[%clk 0:02:59.1]} 2. d4 {[%clk 0:03:00.4]}
2... d5 {[%clk 0:02:59.6]} 3. e5 {[%clk 0:03:01]} 3... c5 {[%clk 0:02:59.9]} 4.
dxc5 {[%clk 0:02:59.4]} 4... e6 {[%clk 0:03:00.2]} 5. Be3 {[%clk 0:02:54]} 5...
Nh6 {[%clk 0:02:59.6]} 6. c3 {[%clk 0:02:51.7]} 6... Nf5 {[%clk 0:02:56.6]} 7.
Bd4 {[%clk 0:02:48.7]} 7... Bd7 {[%clk 0:02:56.6]} 8. Bd3 {[%clk 0:02:43.1]}
8... Nxd4 {[%clk 0:02:54.4]} 9. cxd4 {[%clk 0:02:44]} 9... Nc6 {[%clk
0:02:54.9]} 10. Ne2 {[%clk 0:01:22]} 10... b6 {[%clk 0:02:53]} 11. Bb5 {[%clk
0:00:57.7]} 11... bxc5 {[%clk 0:02:50.2]} 12. Bxc6 {[%clk 0:00:57.8]} 12... Bxc6
{[%clk 0:02:49.8]} 13. Nbc3 {[%clk 0:00:52.3]} 13... Rb8 {[%clk 0:02:44.5]} 14.
Qd2 {[%clk 0:00:48.3]} 14... Be7 {[%clk 0:02:40.5]} 15. O-O {[%clk 0:00:46.3]}
15... O-O {[%clk 0:02:40.2]} 16. Rac1 {[%clk 0:00:40.8]} 16... Qb6 {[%clk
0:02:39.5]} 17. b3 {[%clk 0:00:39.9]} 17... Rfc8 {[%clk 0:02:34.7]} 18. Qd3
{[%clk 0:00:29.1]} 18... h6 {[%clk 0:02:32.4]} 19. Kh1 {[%clk 0:00:27.9]} 19...
Bd7 {[%clk 0:02:14.5]} 20. f4 {[%clk 0:00:27.3]} 20... cxd4 {[%clk 0:02:14.7]}
21. Nxd4 {[%clk 0:00:27.4]} 21... Bc5 {[%clk 0:02:01.5]} 22. Nce2 {[%clk
0:00:23]} 22... Ba3 {[%clk 0:01:57.1]} 23. Rxc8+ {[%clk 0:00:21.8]} 23... Rxc8
{[%clk 0:01:57.6]} 24. f5 {[%clk 0:00:22.3]} 24... Qc7 {[%clk 0:01:17.1]} 25.
Qa6 {[%clk 0:00:14]} 25... Bb2 {[%clk 0:00:45.3]} 26. fxe6 {[%clk 0:00:12.3]}
26... fxe6 {[%clk 0:00:38.7]} 27. Nxe6 {[%clk 0:00:03.8]} 27... Qxe5 {[%clk
0:00:38.2]} 28. N6f4 {[%clk 0:00:03.9]} 28... Rf8 {[%clk 0:00:28.8]} 29. Qd3
{[%clk 0:00:02.5]} 29... g5 {[%clk 0:00:20.7]} 30. Qg6+ {[%clk 0:00:02.7]} 30...
Qg7 {[%clk 0:00:20.8]} 31. Qd6 {[%clk 0:00:01.6]} 31... gxf4 {[%clk 0:00:17.6]}
32. Nxf4 {[%clk 0:00:02.2]} 32... d4 {[%clk 0:00:05.2]} 33. Qd5+ {[%clk
0:00:02.5]} 33... Kh8 {[%clk 0:00:04.7]} 34. Qe4 {[%clk 0:00:02.9]} 34... Bf5
{[%clk 0:00:04.2]} 35. Qd5 {[%clk 0:00:03.2]} 35... Bh7 {[%clk 0:00:04.3]} 36.
h3 {[%clk 0:00:03.3]} 36... d3 {[%clk 0:00:03.7]} 37. g3 {[%clk 0:00:02.5]}
37... Bc3 {[%clk 0:00:04.1]} 38. Kg2 {[%clk 0:00:01.9]} 38... d2 {[%clk
0:00:04.6]} 39. Ne6 {[%clk 0:00:02.2]} 39... Rxf1 {[%clk 0:00:02.7]} 40. Kxf1
{[%clk 0:00:02.1]} 40... Qf6+ {[%clk 0:00:02.6]} 41. Ke2 {[%clk 0:00:02.6]}
41... Bg8 {[%clk 0:00:03.2]} 42. Qd8 {[%clk 0:00:01.3]} 42... Qxe6+ {[%clk
0:00:03.6]} 43. Kf2 {[%clk 0:00:01.8]} 43... d1=Q {[%clk 0:00:04]} 44. Qxd1
{[%clk 0:00:01.4]} 44... Qe5 {[%clk 0:00:04.2]} 45. Qf3 {[%clk 0:00:01.8]} 45...
Qd4+ {[%clk 0:00:04.6]} 46. Kf1 {[%clk 0:00:02.3]} 46... Bd5 {[%clk 0:00:05]}
47. Qf8+ {[%clk 0:00:02.2]} 47... Kh7 {[%clk 0:00:05.7]} 48. Qe7+ {[%clk
0:00:02.8]} 48... Kg8 {[%clk 0:00:06]} 49. Qe8+ {[%clk 0:00:02.9]} 49... Kg7
{[%clk 0:00:06.5]} 50. Qd7+ {[%clk 0:00:03.5]} 50... Bf7 {[%clk 0:00:07.1]} 51.
Qc7 {[%clk 0:00:02.4]} 51... Qe5 {[%clk 0:00:07.1]} 52. Qc8 {[%clk 0:00:01.3]}
52... Qe6 {[%clk 0:00:07]} 53. Qc7 {[%clk 0:00:01.4]} 53... Qf6+ {[%clk
0:00:07]} 0-1

[Event "Early-Titled-Tuesday-Blitz-January-30-2024"]
[Site "Chess.com"]
[Date "2024.01.30"]
[Round "9"]
[White "Massakru"]
[Black "arnash_bauyrzhan"]
[Result "1-0"]
[WhiteElo "2404"]
[BlackElo "2228"]
[TimeControl "180+1"]
[EndTime "9:49:38 PST"]
[Termination "Massakru won on time"]

1. e4 {[%clk 0:03:00.9]} 1... c5 {[%clk 0:02:59.4]} 2. Nf3 {[%clk 0:03:00.9]}
2... e6 {[%clk 0:02:59.1]} 3. c3 {[%clk 0:03:01.3]} 3... Nc6 {[%clk 0:02:58.3]}
4. d4 {[%clk 0:03:01.4]} 4... d5 {[%clk 0:02:58.1]} 5. exd5 {[%clk 0:03:01.5]}
5... exd5 {[%clk 0:02:57.8]} 6. Bb5 {[%clk 0:03:01.6]} 6... Bd6 {[%clk 0:02:56]}
7. O-O {[%clk 0:03:00.8]} 7... Ne7 {[%clk 0:02:55.6]} 8. dxc5 {[%clk 0:02:58.1]}
8... Bxc5 {[%clk 0:02:55.3]} 9. Nbd2 {[%clk 0:02:55.2]} 9... O-O {[%clk
0:02:54.2]} 10. Nb3 {[%clk 0:02:55.5]} 10... Bd6 {[%clk 0:02:52.5]} 11. Bg5
{[%clk 0:02:55]} 11... f6 {[%clk 0:02:51.8]} 12. Bh4 {[%clk 0:02:54.4]} 12... a6
{[%clk 0:02:46.3]} 13. Bd3 {[%clk 0:02:50.9]} 13... Bg4 {[%clk 0:02:45.3]} 14.
Re1 {[%clk 0:02:45.8]} 14... Ne5 {[%clk 0:02:39.8]} 15. Be2 {[%clk 0:02:46]}
15... N5g6 {[%clk 0:02:10.3]} 16. Bg3 {[%clk 0:02:44.2]} 16... Bxg3 {[%clk
0:02:08.2]} 17. hxg3 {[%clk 0:02:43.9]} 17... Qd7 {[%clk 0:01:58.2]} 18. Nfd4
{[%clk 0:02:41.8]} 18... Bxe2 {[%clk 0:01:52.6]} 19. Qxe2 {[%clk 0:02:42.7]}
19... Ne5 {[%clk 0:01:48.5]} 20. Nc5 {[%clk 0:02:38.2]} 20... Qd6 {[%clk
0:01:39.6]} 21. Nce6 {[%clk 0:02:22.4]} 21... Rfe8 {[%clk 0:01:28.2]} 22. f4
{[%clk 0:02:20.9]} 22... N5c6 {[%clk 0:01:17.4]} 23. Qg4 {[%clk 0:02:14.4]}
23... g6 {[%clk 0:01:09.6]} 24. Re2 {[%clk 0:02:02.9]} 24... Nxd4 {[%clk
0:01:05.3]} 25. Nxd4 {[%clk 0:02:02.9]} 25... Nc6 {[%clk 0:01:03.1]} 26. Rae1
{[%clk 0:01:59.3]} 26... Rxe2 {[%clk 0:01:00.6]} 27. Qxe2 {[%clk 0:01:54]} 27...
Nxd4 {[%clk 0:00:58.4]} 28. cxd4 {[%clk 0:01:54.9]} 28... Kf7 {[%clk 0:00:57.8]}
29. f5 {[%clk 0:01:45.6]} 29... Qxg3 {[%clk 0:00:29]} 30. Qe6+ {[%clk
0:01:44.2]} 30... Kg7 {[%clk 0:00:28.9]} 31. Qe7+ {[%clk 0:01:44.5]} 31... Kg8
{[%clk 0:00:24.1]} 32. fxg6 {[%clk 0:01:38.4]} 32... hxg6 {[%clk 0:00:18.8]} 33.
Qe6+ {[%clk 0:01:31.8]} 33... Kg7 {[%clk 0:00:18.2]} 34. Re3 {[%clk 0:01:31.9]}
34... Qf4 {[%clk 0:00:16.8]} 35. Qe7+ {[%clk 0:01:24.7]} 35... Kg8 {[%clk
0:00:16.5]} 36. Qe6+ {[%clk 0:01:20.8]} 36... Kg7 {[%clk 0:00:16.4]} 37. Qe7+
{[%clk 0:01:07.9]} 37... Kg8 {[%clk 0:00:15.8]} 38. Rd3 {[%clk 0:00:34.9]} 38...
Qc1+ {[%clk 0:00:14.2]} 39. Kh2 {[%clk 0:00:32.9]} 39... Qf4+ {[%clk 0:00:13.7]}
40. Rg3 {[%clk 0:00:28.8]} 40... Qh4+ {[%clk 0:00:10.5]} 41. Rh3 {[%clk
0:00:29.2]} 41... Qf4+ {[%clk 0:00:10.3]} 42. Kh1 {[%clk 0:00:25.1]} 42... Qf1+
{[%clk 0:00:09.5]} 43. Kh2 {[%clk 0:00:25.1]} 43... Qf4+ {[%clk 0:00:09.7]} 44.
Kg1 {[%clk 0:00:23.6]} 44... Qxd4+ {[%clk 0:00:08.9]} 45. Kh1 {[%clk 0:00:22.4]}
45... Qd1+ {[%clk 0:00:02.8]} 46. Kh2 {[%clk 0:00:22.5]} 46... Qg4 {[%clk
0:00:02.8]} 47. Qh7+ {[%clk 0:00:22.1]} 47... Kf8 {[%clk 0:00:03.1]} 48. Qh8+
{[%clk 0:00:20.5]} 48... Ke7 {[%clk 0:00:02.7]} 49. Rh7+ {[%clk 0:00:18.6]}
49... Ke6 {[%clk 0:00:02.4]} 50. Qxa8 {[%clk 0:00:15.7]} 50... Qf4+ {[%clk
0:00:02.9]} 51. Kh3 {[%clk 0:00:14.9]} 51... Qf5+ {[%clk 0:00:02.3]} 52. Kg3
{[%clk 0:00:14.9]} 52... Qg5+ {[%clk 0:00:02]} 53. Kf2 {[%clk 0:00:14.8]} 53...
Qf4+ {[%clk 0:00:02.1]} 54. Ke2 {[%clk 0:00:15.3]} 54... Qe4+ {[%clk 0:00:01.9]}
55. Kd2 {[%clk 0:00:15.8]} 1-0

[Event "Early-Titled-Tuesday-Blitz-January-30-2024"]
[Site "Chess.com"]
[Date "2024.01.30"]
[Round "9"]
[White "wannabe2700"]
[Black "the_chess_child"]
[Result "1-0"]
[WhiteElo "2667"]
[BlackElo "2874"]
[TimeControl "180+1"]
[EndTime "9:49:39 PST"]
[Termination "wannabe2700 won on time"]

1. b3 {[%clk 0:03:00.9]} 1... Nf6 {[%clk 0:02:58.6]} 2. Bb2 {[%clk 0:03:01.8]}
2... g6 {[%clk 0:02:58.9]} 3. Nf3 {[%clk 0:03:02.1]} 3... Bg7 {[%clk 0:02:58.9]}
4. g3 {[%clk 0:03:02.6]} 4... O-O {[%clk 0:02:59]} 5. Bg2 {[%clk 0:03:02.9]}
5... c5 {[%clk 0:02:58.4]} 6. c4 {[%clk 0:03:02.8]} 6... d6 {[%clk 0:02:54.1]}
7. d4 {[%clk 0:03:00.5]} 7... cxd4 {[%clk 0:02:54.1]} 8. Nxd4 {[%clk 0:03:00.8]}
8... d5 {[%clk 0:02:49.6]} 9. cxd5 {[%clk 0:02:58.5]} 9... Nxd5 {[%clk
0:02:50.1]} 10. O-O {[%clk 0:02:54.2]} 10... Nb4 {[%clk 0:02:29.9]} 11. e3
{[%clk 0:02:33.7]} 11... e5 {[%clk 0:02:22]} 12. Nb5 {[%clk 0:02:25.2]} 12...
Qb6 {[%clk 0:02:20]} 13. N1c3 {[%clk 0:02:21.2]} 13... a6 {[%clk 0:02:16.6]} 14.
Nd6 {[%clk 0:02:14.7]} 14... Be6 {[%clk 0:02:04.5]} 15. Na4 {[%clk 0:02:04.7]}
15... Qa7 {[%clk 0:01:56.7]} 16. Nxb7 {[%clk 0:02:01.5]} 16... N8c6 {[%clk
0:01:53.6]} 17. a3 {[%clk 0:01:50.8]} 17... Qxb7 {[%clk 0:01:43.3]} 18. axb4
{[%clk 0:01:48.9]} 18... Rfd8 {[%clk 0:01:42.8]} 19. Qc1 {[%clk 0:01:10]} 19...
Bd5 {[%clk 0:01:33.6]} 20. Nc5 {[%clk 0:01:07.9]} 20... Qxb4 {[%clk 0:01:31.7]}
21. e4 {[%clk 0:01:01.4]} 21... Bxb3 {[%clk 0:00:24.5]} 22. Ba3 {[%clk
0:01:00.8]} 22... Qb5 {[%clk 0:00:24.1]} 23. Nxb3 {[%clk 0:01:00.6]} 23... Rac8
{[%clk 0:00:23.9]} 24. Qb1 {[%clk 0:00:33.6]} 24... Qe2 {[%clk 0:00:19.6]} 25.
Re1 {[%clk 0:00:31.2]} 25... Qg4 {[%clk 0:00:19.5]} 26. h3 {[%clk 0:00:23.9]}
26... Qg5 {[%clk 0:00:15.9]} 27. Bc5 {[%clk 0:00:20.8]} 27... Nd4 {[%clk
0:00:15.7]} 28. Bxd4 {[%clk 0:00:18.6]} 28... exd4 {[%clk 0:00:16.6]} 29. Rxa6
{[%clk 0:00:17.2]} 29... d3 {[%clk 0:00:16.8]} 30. Ra5 {[%clk 0:00:13.6]} 30...
Qf6 {[%clk 0:00:13.9]} 31. Rd5 {[%clk 0:00:13.3]} 31... Rxd5 {[%clk 0:00:13.5]}
32. exd5 {[%clk 0:00:14.2]} 32... Rc3 {[%clk 0:00:09.7]} 33. Rd1 {[%clk
0:00:13.6]} 33... Qf5 {[%clk 0:00:07.2]} 34. g4 {[%clk 0:00:13.8]} 34... Qf4
{[%clk 0:00:06]} 35. Rxd3 {[%clk 0:00:13.3]} 35... Rc8 {[%clk 0:00:06.4]} 36.
Rd1 {[%clk 0:00:12.9]} 36... Be5 {[%clk 0:00:06.3]} 37. Qd3 {[%clk 0:00:12.3]}
37... Rc3 {[%clk 0:00:06.3]} 38. Qb5 {[%clk 0:00:11.3]} 38... Qh2+ {[%clk
0:00:06.2]} 39. Kf1 {[%clk 0:00:11.4]} 39... Kg7 {[%clk 0:00:06.9]} 40. Nd2
{[%clk 0:00:08.7]} 40... Rc2 {[%clk 0:00:07]} 41. Qd3 {[%clk 0:00:07.3]} 41...
Rc3 {[%clk 0:00:06.4]} 42. Qe2 {[%clk 0:00:07.2]} 42... Qf4 {[%clk 0:00:06.2]}
43. Ne4 {[%clk 0:00:07.1]} 43... Rc8 {[%clk 0:00:05.1]} 44. d6 {[%clk
0:00:07.5]} 44... Rd8 {[%clk 0:00:05]} 45. d7 {[%clk 0:00:08.1]} 45... Qh2
{[%clk 0:00:04.3]} 46. Qf3 {[%clk 0:00:07.9]} 46... Bc7 {[%clk 0:00:03.9]} 47.
Qf6+ {[%clk 0:00:07.5]} 47... Kg8 {[%clk 0:00:04]} 48. Nd6 {[%clk 0:00:08]}
48... Rf8 {[%clk 0:00:02.8]} 49. Ne8 {[%clk 0:00:07.9]} 49... Be5 {[%clk
0:00:02]} 50. Qe7 {[%clk 0:00:07.7]} 50... Qf4 {[%clk 0:00:01.3]} 51. d8=Q
{[%clk 0:00:07.4]} 1-0